[Event "Dutch Internet Championship Final"]
[Site "playchess.com #038132"]
[Date "2011.06.18"]
[Round "2.1"]
[White "Erikerik"]
[Black "kingloek"]
[Result "0-1"]
[ECO "B90"]
[WhiteElo "2650"]
[BlackElo "2907"]
[PlyCount "56"]
[EventDate "2011.06.18"]
[EventType "match (blitz)"]
[TimeControl "180+3"]

1. e4 {[%emt 0:00:01]} c5 {[%emt 0:00:01]} 2. Nf3 {[%emt 0:00:01]} d6 {[%emt 0:
00:01]} 3. d4 {[%emt 0:00:02]} cxd4 {[%emt 0:00:01]} 4. Nxd4 {[%emt 0:00:01]}
Nf6 {[%emt 0:00:01]} 5. Nc3 {[%emt 0:00:01]} a6 {[%emt 0:00:01]} 6. Be3 {[%emt
0:00:01]} e5 {[%emt 0:00:02]} 7. Nb3 {[%emt 0:00:02]} Be7 {[%emt 0:00:02]} 8.
Qf3 {[%emt 0:00:03]} O-O {[%emt 0:00:10]} 9. h3 {[%emt 0:00:10]} b5 {[%emt 0:
00:09]} 10. O-O-O {[%emt 0:00:25]} b4 {[%emt 0:00:09]} 11. Na4 {[%emt 0:00:33]}
Nbd7 {[%emt 0:00:10]} 12. g4 {[%emt 0:00:21]} Bb7 {[%emt 0:00:01]} 13. Bd3 {
[%emt 0:00:15]} Bc6 {[%emt 0:00:04]} 14. g5 {[%emt 0:00:03]} Ne8 {[%emt 0:00:
09]} 15. h4 {[%emt 0:00:25]} Bxa4 {[%emt 0:00:03]} 16. Bc4 {[%emt 0:00:09]} Qc7
{[%emt 0:00:54]} 17. Bd5 {[%emt 0:00:05]} Rc8 {[%emt 0:00:02]} 18. Rd2 {[%emt
0:00:06]} Bc6 {[%emt 0:00:01]} 19. h5 {[%emt 0:00:08]} Bxd5 {[%emt 0:00:02]}
20. exd5 {[%emt 0:00:02]} Nb6 {[%emt 0:00:09]} 21. Bxb6 {[%emt 0:00:28]} Qxb6 {
[%emt 0:00:03]} 22. Qf5 {[%emt 0:00:01]} Rc4 {[%emt 0:00:23]} 23. g6 {[%emt 0:
00:07]} Rf4 {[%emt 0:00:02]} 24. gxh7+ {[%emt 0:00:24]} Kh8 {[%emt 0:00:02]}
25. Qd7 {[%emt 0:00:03]} Bg5 {[%emt 0:00:14]} 26. Kb1 {[%emt 0:00:03]} Nf6 {
[%emt 0:00:04]} 27. Qe7 {[%emt 0:00:11]} Nxh7 {[%emt 0:00:09]} 28. Nc1 {[%emt
0:00:05]} Bxe7 {[%emt 0:00:02] Tijd  (Lag: Av=0.50s, max=2.4s) .} 0-1

[Event "Dutch Internet Championship Final"]
[Site "playchess.com #038132"]
[Date "2011.06.18"]
[Round "2.1"]
[White "Daanbrandenburg"]
[Black "Jan Smeets"]
[Result "1-0"]
[ECO "C55"]
[WhiteElo "2697"]
[BlackElo "2846"]
[PlyCount "51"]
[EventDate "2011.06.18"]
[EventType "match (blitz)"]
[TimeControl "180+3"]

1. e4 {[%emt 0:00:02]} e5 {[%emt 0:00:04]} 2. Nf3 {[%emt 0:00:01]} Nc6 {[%emt
0:00:01]} 3. d4 {[%emt 0:00:01]} exd4 {[%emt 0:00:01]} 4. Bc4 {[%emt 0:00:01]}
Nf6 {[%emt 0:00:04]} 5. Ng5 {[%emt 0:00:01]} Ne5 {[%emt 0:00:05]} 6. Bb3 {
[%emt 0:00:01]} h6 {[%emt 0:01:28]} 7. f4 {[%emt 0:00:02]} hxg5 {[%emt 0:00:01]
} 8. fxe5 {[%emt 0:00:01]} Nxe4 {[%emt 0:00:00]} 9. Bd5 {[%emt 0:00:01]} Nc5 {
[%emt 0:00:12]} 10. O-O {[%emt 0:00:02]} Ne6 {[%emt 0:00:01]} 11. Qf3 {[%emt 0:
00:01]} Qe7 {[%emt 0:00:07]} 12. Nd2 {[%emt 0:00:01]} f6 {[%emt 0:00:34]} 13.
Ne4 {[%emt 0:01:28] .} c6 {[%emt 0:00:13]} 14. exf6 {[%emt 0:00:10]} gxf6 {
[%emt 0:00:01]} 15. Nxf6+ {[%emt 0:00:02]} Kd8 {[%emt 0:00:01]} 16. Bxe6 {
[%emt 0:00:06]} Qxe6 {[%emt 0:00:03]} 17. Bxg5 {[%emt 0:00:01]} Kc7 {[%emt 0:
00:00]} 18. Rae1 {[%emt 0:00:05]} Qxa2 {[%emt 0:00:21]} 19. Ne8+ {[%emt 0:00:
19]} Kb6 {[%emt 0:00:05]} 20. Bd8+ {[%emt 0:00:10]} Kc5 {[%emt 0:00:06]} 21. c3
{[%emt 0:00:41]} Qd5 {[%emt 0:00:10]} 22. b4+ {[%emt 0:00:22]} Kc4 {[%emt 0:00:
02]} 23. Qe2+ {[%emt 0:00:08]} d3 {[%emt 0:00:04]} 24. Qa2+ {[%emt 0:00:16]}
Kxc3 {[%emt 0:00:03]} 25. Rc1+ {[%emt 0:00:03]} Kxb4 {[%emt 0:00:09]} 26. Qb2+
{[%emt 0:00:02] Jan Smeets resigns  (Lag: Av=0.48s, max=1.2s)} 1-0

[Event "Dutch Internet Championship Final"]
[Site "playchess.com #038132"]
[Date "2011.06.18"]
[Round "2.1"]
[White "Rossetis"]
[Black "Ivan Sokolov"]
[Result "0-1"]
[ECO "C75"]
[WhiteElo "2505"]
[BlackElo "2287"]
[PlyCount "48"]
[EventDate "2011.06.18"]
[EventType "match (blitz)"]
[TimeControl "180+3"]

1. e4 {[%emt 0:00:01]} e5 {[%emt 0:00:02]} 2. Nf3 {[%emt 0:00:03]} Nc6 {[%emt
0:00:01]} 3. Bb5 {[%emt 0:00:02]} a6 {[%emt 0:00:01]} 4. Ba4 {[%emt 0:00:03]}
d6 {[%emt 0:00:01]} 5. c3 {[%emt 0:00:06]} Bd7 {[%emt 0:00:02]} 6. d3 {[%emt 0:
00:07]} g6 {[%emt 0:00:03]} 7. h3 {[%emt 0:00:02]} Bg7 {[%emt 0:00:02]} 8. O-O
{[%emt 0:00:05]} Nf6 {[%emt 0:00:05]} 9. Be3 {[%emt 0:00:02]} O-O {[%emt 0:00:
02]} 10. Nbd2 {[%emt 0:00:01]} Kh8 {[%emt 0:00:04]} 11. Re1 {[%emt 0:00:11]}
Nh5 {[%emt 0:00:03]} 12. Nf1 {[%emt 0:00:15]} f5 {[%emt 0:00:20]} 13. exf5 {
[%emt 0:00:02]} gxf5 {[%emt 0:00:02]} 14. Bxc6 {[%emt 0:00:22]} Bxc6 {[%emt 0:
00:02] Rossetis reconnected.} 15. Nxe5 {[%emt 0:00:08]} dxe5 {[%emt 0:00:01]}
16. Qxh5 {[%emt 0:00:04]} f4 {[%emt 0:00:16]} 17. Bc5 {[%emt 0:00:06]} Qd5 {
[%emt 0:00:03]} 18. f3 {[%emt 0:00:16]} Qxc5+ {[%emt 0:00:02]} 19. d4 {[%emt 0:
00:00]} Qb6 {[%emt 0:00:05]} 20. Rxe5 {[%emt 0:00:02]} Qxb2 {[%emt 0:00:03]}
21. Rae1 {[%emt 0:00:04]} Qxc3 {[%emt 0:00:02]} 22. d5 {[%emt 0:00:03]} Bxd5 {
[%emt 0:00:12]} 23. Re7 {[%emt 0:00:06]} Bxa2 {[%emt 0:00:09]} 24. R1e5 {[%emt
0:00:03]} Bf7 {[%emt 0:00:09] Rossetis reconnected. Rossetis geeft op  (Lag:
Av=1.59s, max=21.7s)} 0-1

[Event "Dutch Internet Championship Final"]
[Site "playchess.com #038132"]
[Date "2011.06.18"]
[Round "2.1"]
[White "Christov"]
[Black "Reinderman"]
[Result "1/2-1/2"]
[ECO "C41"]
[WhiteElo "2470"]
[BlackElo "2514"]
[PlyCount "73"]
[EventDate "2011.06.18"]
[EventType "match (blitz)"]
[TimeControl "180+3"]

1. e4 {[%emt 0:00:01]} d6 {[%emt 0:00:01]} 2. d4 {[%emt 0:00:01]} Nf6 {[%emt 0:
00:01]} 3. Nc3 {[%emt 0:00:00]} e5 {[%emt 0:00:01]} 4. Nf3 {[%emt 0:00:00]}
Nbd7 {[%emt 0:00:01]} 5. Bc4 {[%emt 0:00:01]} Be7 {[%emt 0:00:01]} 6. O-O {
[%emt 0:00:01]} O-O {[%emt 0:00:01]} 7. a4 {[%emt 0:00:01]} c6 {[%emt 0:00:01]}
8. Ba2 {[%emt 0:00:03]} a5 {[%emt 0:00:04]} 9. Re1 {[%emt 0:00:02]} exd4 {
[%emt 0:00:09]} 10. Nxd4 {[%emt 0:00:02]} Nc5 {[%emt 0:00:07]} 11. Qf3 {[%emt
0:00:04]} Nfd7 {[%emt 0:00:10]} 12. Nf5 {[%emt 0:00:08]} Nb6 {[%emt 0:00:14]}
13. Nxe7+ {[%emt 0:00:09]} Qxe7 {[%emt 0:00:01]} 14. Bf4 {[%emt 0:00:01]} Be6 {
[%emt 0:00:12]} 15. Qg3 {[%emt 0:00:07]} Rad8 {[%emt 0:00:09]} 16. Bxe6 {[%emt
0:00:11]} Nxe6 {[%emt 0:00:04]} 17. Bc1 {[%emt 0:00:17]} d5 {[%emt 0:00:24]}
18. exd5 {[%emt 0:00:04]} Nxd5 {[%emt 0:00:01]} 19. Nxd5 {[%emt 0:00:02]} cxd5
{[%emt 0:00:17]} 20. Bd2 {[%emt 0:00:06]} b6 {[%emt 0:00:07]} 21. Rad1 {[%emt
0:00:07]} Kh8 {[%emt 0:00:07]} 22. Qb3 {[%emt 0:00:09]} Qc5 {[%emt 0:00:05]}
23. c3 {[%emt 0:00:09]} Qc6 {[%emt 0:00:29]} 24. Be3 {[%emt 0:00:11]} Rd6 {
[%emt 0:00:02]} 25. Rd2 {[%emt 0:00:06]} Nc5 {[%emt 0:00:05]} 26. Bxc5 {[%emt
0:00:02]} bxc5 {[%emt 0:00:02]} 27. Red1 {[%emt 0:00:02]} Rfd8 {[%emt 0:00:02]}
28. Qb5 {[%emt 0:00:15]} Qxb5 {[%emt 0:00:03]} 29. axb5 {[%emt 0:00:01]} c4 {
[%emt 0:00:03]} 30. Ra1 {[%emt 0:00:04]} d4 {[%emt 0:00:18]} 31. cxd4 {[%emt 0:
00:05]} Rxd4 {[%emt 0:00:01]} 32. Rxd4 {[%emt 0:00:01]} Rxd4 {[%emt 0:00:01]}
33. g3 {[%emt 0:00:14]} Rd2 {[%emt 0:00:03]} 34. Rxa5 {[%emt 0:00:08]} h6 {
[%emt 0:00:03]} 35. Ra4 {[%emt 0:00:11]} Rxb2 {[%emt 0:00:03]} 36. Rxc4 {[%emt
0:00:01]} Rxb5 {[%emt 0:00:01] Christov doet een remise aanbod} 37. Kg2 {[%emt
0:00:02] (Lag: Av=0.27s, max=0.6s)} 1/2-1/2

[Event "Dutch Internet Championship Final"]
[Site "playchess.com #038132"]
[Date "2011.06.18"]
[Round "2.2"]
[White "Reinderman"]
[Black "Christov"]
[Result "1-0"]
[ECO "A16"]
[WhiteElo "2512"]
[BlackElo "2472"]
[PlyCount "125"]
[EventDate "2011.06.18"]
[EventType "match (blitz)"]
[TimeControl "180+3"]

1. c4 {[%emt 0:00:01]} Nf6 {[%emt 0:00:02]} 2. g3 {[%emt 0:00:01]} g6 {[%emt 0:
00:02]} 3. Bg2 {[%emt 0:00:01]} Bg7 {[%emt 0:00:01]} 4. Nc3 {[%emt 0:00:01]} d6
{[%emt 0:00:01]} 5. e4 {[%emt 0:00:02]} O-O {[%emt 0:00:01]} 6. Nge2 {[%emt 0:
00:01]} c5 {[%emt 0:00:06]} 7. d4 {[%emt 0:00:02]} cxd4 {[%emt 0:00:02]} 8.
Nxd4 {[%emt 0:00:01]} Bd7 {[%emt 0:00:10]} 9. O-O {[%emt 0:00:04]} Nc6 {[%emt
0:00:01]} 10. Nde2 {[%emt 0:00:01]} Rc8 {[%emt 0:00:03]} 11. b3 {[%emt 0:00:12]
} a6 {[%emt 0:00:07]} 12. a4 {[%emt 0:00:02]} Be6 {[%emt 0:00:07]} 13. h3 {
[%emt 0:00:05]} Nd7 {[%emt 0:00:02]} 14. Be3 {[%emt 0:00:07]} Nc5 {[%emt 0:00:
06]} 15. Rb1 {[%emt 0:00:02]} Nb4 {[%emt 0:00:02]} 16. Qd2 {[%emt 0:00:06]} a5
{[%emt 0:00:16]} 17. Nd4 {[%emt 0:00:09]} b6 {[%emt 0:00:05]} 18. Nd5 {[%emt 0:
00:06]} Nba6 {[%emt 0:00:17]} 19. Kh2 {[%emt 0:00:09]} Bd7 {[%emt 0:00:02]} 20.
Nb5 {[%emt 0:00:11]} Bxb5 {[%emt 0:00:16]} 21. axb5 {[%emt 0:00:12]} Nb8 {
[%emt 0:00:01]} 22. f4 {[%emt 0:00:09]} Nbd7 {[%emt 0:00:03]} 23. b4 {[%emt 0:
00:14]} Nb7 {[%emt 0:00:04]} 24. Rfc1 {[%emt 0:00:02]} e6 {[%emt 0:00:04]} 25.
bxa5 {[%emt 0:00:25]} exd5 {[%emt 0:00:08]} 26. a6 {[%emt 0:00:05]} Na5 {[%emt
0:00:01]} 27. Qxd5 {[%emt 0:00:05]} Qc7 {[%emt 0:00:16]} 28. Rc2 {[%emt 0:00:
09]} Nc5 {[%emt 0:00:12]} 29. Ra2 {[%emt 0:00:21]} Rb8 {[%emt 0:00:43]} 30.
Rxa5 {[%emt 0:00:28]} bxa5 {[%emt 0:00:01]} 31. e5 {[%emt 0:00:02]} Nxa6 {
[%emt 0:00:22]} 32. exd6 {[%emt 0:00:01]} Qd7 {[%emt 0:00:01]} 33. bxa6 {[%emt
0:00:35]} Rxb1 {[%emt 0:00:04]} 34. c5 {[%emt 0:00:01]} Qb5 {[%emt 0:00:17]}
35. a7 {[%emt 0:00:03]} Qe2 {[%emt 0:00:05]} 36. Qf3 {[%emt 0:00:16]} Qxf3 {
[%emt 0:00:03]} 37. Bxf3 {[%emt 0:00:01]} Rb3 {[%emt 0:00:00]} 38. a8=Q {[%emt
0:00:09]} Rxa8 {[%emt 0:00:02]} 39. Bxa8 {[%emt 0:00:01]} Rxe3 {[%emt 0:00:16]}
40. c6 {[%emt 0:00:01]} Re2+ {[%emt 0:00:05]} 41. Kh1 {[%emt 0:00:02]} Bf8 {
[%emt 0:00:23] '} 42. d7 {[%emt 0:00:09] .} Rd2 {[%emt 0:00:01]} 43. c7 {[%emt
0:00:02]} Rd1+ {[%emt 0:00:00]} 44. Kg2 {[%emt 0:00:02]} Rd2+ {[%emt 0:00:01]}
45. Kf3 {[%emt 0:00:01]} Rxd7 {[%emt 0:00:01]} 46. c8=Q {[%emt 0:00:03]} Re7 {
[%emt 0:00:00]} 47. Qc4 {[%emt 0:00:03]} Kg7 {[%emt 0:00:01]} 48. Bd5 {[%emt 0:
00:01]} Kg8 {[%emt 0:00:01]} 49. h4 {[%emt 0:00:03]} Ra7 {[%emt 0:00:01]} 50.
Bc6 {[%emt 0:00:03]} Rc7 {[%emt 0:00:03]} 51. Qd5 {[%emt 0:00:01]} Ra7 {[%emt
0:00:03]} 52. Ba4 {[%emt 0:00:01]} Rc7 {[%emt 0:00:10]} 53. Bb3 {[%emt 0:00:06]
} Ra7 {[%emt 0:00:06]} 54. Qc4 {[%emt 0:00:04]} Re7 {[%emt 0:00:05]} 55. Kg4 {
[%emt 0:00:05]} h5+ {[%emt 0:00:04]} 56. Kh3 {[%emt 0:00:02]} Kh7 {[%emt 0:00:
00]} 57. Qd5 {[%emt 0:00:01]} Bg7 {[%emt 0:00:02]} 58. Qxa5 {[%emt 0:00:08]}
Bf6 {[%emt 0:00:04]} 59. Qd5 {[%emt 0:00:05]} Kg7 {[%emt 0:00:01]} 60. Qd3 {
[%emt 0:00:02]} Rc7 {[%emt 0:00:01]} 61. f5 {[%emt 0:00:05]} Re7 {[%emt 0:00:
01]} 62. fxg6 {[%emt 0:00:02]} fxg6 {[%emt 0:00:00]} 63. Bc2 {[%emt 0:00:01]
Christov geeft op  (Lag: Av=0.31s, max=2.6s)} 1-0

[Event "Dutch Internet Championship Final"]
[Site "playchess.com #038132"]
[Date "2011.06.18"]
[Round "2.2"]
[White "Ivan Sokolov"]
[Black "Rossetis"]
[Result "1-0"]
[ECO "A41"]
[WhiteElo "2345"]
[BlackElo "2478"]
[PlyCount "61"]
[EventDate "2011.06.18"]
[EventType "match (blitz)"]
[TimeControl "180+3"]

1. d4 {[%emt 0:00:02]} d6 {[%emt 0:00:02]} 2. Bg5 {[%emt 0:00:04]} Nd7 {[%emt
0:00:02]} 3. Nf3 {[%emt 0:00:04]} g6 {[%emt 0:00:01]} 4. c4 {[%emt 0:00:03]}
Bg7 {[%emt 0:00:01]} 5. Nc3 {[%emt 0:00:01]} Ngf6 {[%emt 0:00:09]} 6. Qc2 {
[%emt 0:00:01]} h6 {[%emt 0:00:08]} 7. Bh4 {[%emt 0:00:07]} g5 {[%emt 0:00:04]}
8. Bg3 {[%emt 0:00:02]} c5 {[%emt 0:00:08]} 9. e3 {[%emt 0:00:08]} b6 {[%emt 0:
00:12]} 10. Be2 {[%emt 0:00:03]} Bb7 {[%emt 0:00:02]} 11. Rd1 {[%emt 0:00:05]}
cxd4 {[%emt 0:00:04]} 12. Nxd4 {[%emt 0:00:08]} Rc8 {[%emt 0:00:15]} 13. Nf5 {
[%emt 0:00:04]} O-O {[%emt 0:00:02]} 14. O-O {[%emt 0:00:05]} Re8 {[%emt 0:00:
16]} 15. h4 {[%emt 0:00:08]} g4 {[%emt 0:00:15]} 16. e4 {[%emt 0:00:10]} Qc7 {
[%emt 0:00:06]} 17. Qc1 {[%emt 0:00:32]} Nxe4 {[%emt 0:00:19]} 18. Nxe4 {[%emt
0:00:03]} Bxe4 {[%emt 0:00:01]} 19. Nxh6+ {[%emt 0:00:18]} Bxh6 {[%emt 0:00:20]
} 20. Qxh6 {[%emt 0:00:04]} Qc6 {[%emt 0:00:15]} 21. Qg5+ {[%emt 0:00:08]} Kf8
{[%emt 0:00:09]} 22. Bxg4 {[%emt 0:00:14]} Rc7 {[%emt 0:00:02]} 23. Rd4 {[%emt
0:00:17]} Nf6 {[%emt 0:00:11]} 24. Bxd6 {[%emt 0:00:08]} exd6 {[%emt 0:00:44]}
25. Qxf6 {[%emt 0:00:01]} Bxg2 {[%emt 0:00:13]} 26. Rxd6 {[%emt 0:00:02]} Qe4 {
[%emt 0:00:08]} 27. f3 {[%emt 0:00:16] .} Qe3+ {[%emt 0:00:08]} 28. Kxg2 {
[%emt 0:00:03]} Rxc4 {[%emt 0:00:01]} 29. Rf2 {[%emt 0:00:15]} Rf4 {[%emt 0:00:
05]} 30. Qh8+ {[%emt 0:00:06]} Ke7 {[%emt 0:00:01]} 31. Rd7# {[%emt 0:00:01] 
(Lag: Av=0.37s, max=2.6s)} 1-0

[Event "Dutch Internet Championship Final"]
[Site "playchess.com #038132"]
[Date "2011.06.18"]
[Round "2.2"]
[White "kingloek"]
[Black "Erikerik"]
[Result "1-0"]
[ECO "E11"]
[WhiteElo "2913"]
[BlackElo "2643"]
[PlyCount "127"]
[EventDate "2011.06.18"]
[EventType "match (blitz)"]
[TimeControl "180+3"]

1. d4 {[%emt 0:00:02]} Nf6 {[%emt 0:00:01]} 2. c4 {[%emt 0:00:01]} e6 {[%emt 0:
00:01]} 3. Nf3 {[%emt 0:00:01]} Bb4+ {[%emt 0:00:02]} 4. Nbd2 {[%emt 0:00:01]}
O-O {[%emt 0:00:02]} 5. a3 {[%emt 0:00:02]} Be7 {[%emt 0:00:02]} 6. e4 {[%emt
0:00:01]} d5 {[%emt 0:00:01]} 7. e5 {[%emt 0:00:01]} Nfd7 {[%emt 0:00:01]} 8.
b4 {[%emt 0:00:01]} a5 {[%emt 0:00:01]} 9. b5 {[%emt 0:00:02]} c5 {[%emt 0:00:
01]} 10. cxd5 {[%emt 0:00:02]} exd5 {[%emt 0:00:02]} 11. Be2 {[%emt 0:00:04]}
cxd4 {[%emt 0:00:01]} 12. Bb2 {[%emt 0:00:02]} Nc5 {[%emt 0:00:01]} 13. Nxd4 {
[%emt 0:00:02]} Nbd7 {[%emt 0:00:05]} 14. f4 {[%emt 0:00:01]} Nb6 {[%emt 0:00:
03]} 15. O-O {[%emt 0:00:34]} Nba4 {[%emt 0:00:39]} 16. Rb1 {[%emt 0:00:25]}
Nxb2 {[%emt 0:00:12]} 17. Rxb2 {[%emt 0:00:01]} Qb6 {[%emt 0:00:03]} 18. Kh1 {
[%emt 0:00:04]} Ne4 {[%emt 0:00:42]} 19. Nxe4 {[%emt 0:00:28]} dxe4 {[%emt 0:
00:01]} 20. Qa4 {[%emt 0:00:01]} Rd8 {[%emt 0:00:29]} 21. Rd1 {[%emt 0:00:04]}
Bc5 {[%emt 0:00:07]} 22. Rbd2 {[%emt 0:00:08]} e3 {[%emt 0:00:15]} 23. Rd3 {
[%emt 0:00:05]} Bxd4 {[%emt 0:00:09]} 24. Rxd4 {[%emt 0:00:03]} Be6 {[%emt 0:
00:12]} 25. h3 {[%emt 0:00:25]} g6 {[%emt 0:00:02]} 26. Kh2 {[%emt 0:00:31]}
Rxd4 {[%emt 0:00:20]} 27. Qxd4 {[%emt 0:00:02]} Qxd4 {[%emt 0:00:02]} 28. Rxd4
{[%emt 0:00:01]} Rc8 {[%emt 0:00:11]} 29. Rd3 {[%emt 0:00:03]} Rc2 {[%emt 0:00:
14]} 30. Rxe3 {[%emt 0:00:02]} Bd5 {[%emt 0:00:06]} 31. Kg3 {[%emt 0:00:19]}
Rb2 {[%emt 0:00:04]} 32. Rd3 {[%emt 0:00:27] .} Rxb5 {[%emt 0:00:18]} 33. Bf3 {
[%emt 0:00:14]} Bxf3 {[%emt 0:00:04]} 34. Kxf3 {[%emt 0:00:00]} a4 {[%emt 0:00:
04]} 35. Ke4 {[%emt 0:00:01]} Kf8 {[%emt 0:00:02]} 36. g4 {[%emt 0:00:03]} Ke7
{[%emt 0:00:02]} 37. f5 {[%emt 0:00:01]} gxf5+ {[%emt 0:00:01]} 38. gxf5 {
[%emt 0:00:01]} Rb1 {[%emt 0:00:03]} 39. f6+ {[%emt 0:00:02]} Ke8 {[%emt 0:00:
01]} 40. Rd6 {[%emt 0:00:13]} Re1+ {[%emt 0:00:08]} 41. Kd5 {[%emt 0:00:03]}
Rd1+ {[%emt 0:00:01]} 42. Kc5 {[%emt 0:00:01]} Re1 {[%emt 0:00:01]} 43. Rd5 {
[%emt 0:00:02]} Re3 {[%emt 0:00:01]} 44. Kb4 {[%emt 0:00:01]} Re4+ {[%emt 0:00:
02]} 45. Kb5 {[%emt 0:00:02]} h6 {[%emt 0:00:03]} 46. Ka5 {[%emt 0:00:05]} h5 {
[%emt 0:00:02]} 47. Rb5 {[%emt 0:00:02]} h4 {[%emt 0:00:03]} 48. Rxb7 {[%emt 0:
00:07]} Rxe5+ {[%emt 0:00:01]} 49. Kxa4 {[%emt 0:00:02]} Re3 {[%emt 0:00:10]}
50. Re7+ {[%emt 0:00:02]} Rxe7 {[%emt 0:00:02]} 51. fxe7 {[%emt 0:00:00]} Kxe7
{[%emt 0:00:01]} 52. Kb5 {[%emt 0:00:01]} Ke6 {[%emt 0:00:01]} 53. Kc4 {[%emt
0:00:10]} Ke5 {[%emt 0:00:04]} 54. a4 {[%emt 0:00:05]} Kd6 {[%emt 0:00:07]} 55.
Kd4 {[%emt 0:00:01]} Kc6 {[%emt 0:00:06]} 56. Ke4 {[%emt 0:00:01]} Kb6 {[%emt
0:00:02]} 57. Kf5 {[%emt 0:00:01]} Ka5 {[%emt 0:00:02]} 58. Kg5 {[%emt 0:00:01]
} Kxa4 {[%emt 0:00:01]} 59. Kxh4 {[%emt 0:00:01]} Kb5 {[%emt 0:00:02]} 60. Kg5
{[%emt 0:00:01]} Kc6 {[%emt 0:00:01]} 61. Kf6 {[%emt 0:00:03]} Kd7 {[%emt 0:00:
01]} 62. Kxf7 {[%emt 0:00:01]} Kd6 {[%emt 0:00:02]} 63. h4 {[%emt 0:00:01]} Ke5
{[%emt 0:00:01]} 64. h5 {[%emt 0:00:01] Erikerik geeft op  (Lag: Av=0.67s,
max=4.5s)} 1-0

[Event "Dutch Internet Championship Final"]
[Site "playchess.com #038132"]
[Date "2011.06.18"]
[Round "2.2"]
[White "Jan Smeets"]
[Black "Daanbrandenburg"]
[Result "1/2-1/2"]
[ECO "B52"]
[WhiteElo "2822"]
[BlackElo "2721"]
[PlyCount "99"]
[EventDate "2011.06.18"]
[EventType "match (blitz)"]
[TimeControl "180+3"]

1. e4 {[%emt 0:00:02]} c5 {[%emt 0:00:03]} 2. Nf3 {[%emt 0:00:01]} d6 {[%emt 0:
00:01]} 3. Bb5+ {[%emt 0:00:04]} Bd7 {[%emt 0:00:03]} 4. Bxd7+ {[%emt 0:00:01]}
Qxd7 {[%emt 0:00:00]} 5. O-O {[%emt 0:00:01]} Nf6 {[%emt 0:00:01]} 6. Qe2 {
[%emt 0:00:00]} Nc6 {[%emt 0:00:02]} 7. c3 {[%emt 0:00:01]} e6 {[%emt 0:00:03]}
8. d4 {[%emt 0:00:01]} d5 {[%emt 0:00:01]} 9. e5 {[%emt 0:00:01]} Ne4 {[%emt 0:
00:01]} 10. Be3 {[%emt 0:00:04]} Be7 {[%emt 0:00:12]} 11. Ne1 {[%emt 0:00:03]}
f5 {[%emt 0:00:24]} 12. f3 {[%emt 0:00:07]} Ng5 {[%emt 0:00:02]} 13. dxc5 {
[%emt 0:00:12]} Nf7 {[%emt 0:00:11]} 14. Bd4 {[%emt 0:00:10]} O-O {[%emt 0:00:
21]} 15. Nd3 {[%emt 0:00:02]} Rfc8 {[%emt 0:00:13]} 16. Nd2 {[%emt 0:00:12]} b6
{[%emt 0:00:12]} 17. cxb6 {[%emt 0:00:03]} Nxd4 {[%emt 0:00:01]} 18. cxd4 {
[%emt 0:00:01]} axb6 {[%emt 0:00:00]} 19. a3 {[%emt 0:00:14]} Ra4 {[%emt 0:00:
04]} 20. Qe3 {[%emt 0:00:08]} Bg5 {[%emt 0:00:22]} 21. f4 {[%emt 0:00:02]} Be7
{[%emt 0:00:01]} 22. Rac1 {[%emt 0:00:03]} Rxc1 {[%emt 0:00:05]} 23. Rxc1 {
[%emt 0:00:03]} h6 {[%emt 0:00:00]} 24. g3 {[%emt 0:00:18]} Nd8 {[%emt 0:00:10]
} 25. Nf3 {[%emt 0:00:08]} Nc6 {[%emt 0:00:06]} 26. Kg2 {[%emt 0:00:04]} Rc4 {
[%emt 0:00:09]} 27. b3 {[%emt 0:00:26]} Rxc1 {[%emt 0:00:09]} 28. Qxc1 {[%emt
0:00:00]} Na5 {[%emt 0:00:05]} 29. b4 {[%emt 0:00:07]} Nc4 {[%emt 0:00:02]} 30.
h3 {[%emt 0:00:06]} Qb5 {[%emt 0:00:04]} 31. Kf2 {[%emt 0:00:05]} Qa4 {[%emt 0:
00:12]} 32. g4 {[%emt 0:00:34]} Qxa3 {[%emt 0:00:28]} 33. Qxa3 {[%emt 0:00:14]}
Nxa3 {[%emt 0:00:00]} 34. gxf5 {[%emt 0:00:13]} exf5 {[%emt 0:00:01]} 35. Nfe1
{[%emt 0:00:01]} Kf7 {[%emt 0:00:12]} 36. Ke2 {[%emt 0:00:09]} Ke6 {[%emt 0:00:
02]} 37. Kd2 {[%emt 0:00:05]} Kd7 {[%emt 0:00:04]} 38. Ng2 {[%emt 0:00:08]}
Nc4+ {[%emt 0:00:09]} 39. Kc3 {[%emt 0:00:01]} Kc6 {[%emt 0:00:02]} 40. Kb3 {
[%emt 0:00:14]} Kb5 {[%emt 0:00:07]} 41. Nge1 {[%emt 0:00:01]} Nd2+ {[%emt 0:
00:04]} 42. Kc3 {[%emt 0:00:04]} Ne4+ {[%emt 0:00:02]} 43. Kb3 {[%emt 0:00:01]}
g5 {[%emt 0:00:15]} 44. fxg5 {[%emt 0:00:07]} hxg5 {[%emt 0:00:00]} 45. Ng2 {
[%emt 0:00:09]} f4 {[%emt 0:00:14]} 46. Nge1 {[%emt 0:00:01]} Nd2+ {[%emt 0:00:
03]} 47. Kc3 {[%emt 0:00:02]} Ne4+ {[%emt 0:00:01]} 48. Kb3 {[%emt 0:00:01]}
Nd2+ {[%emt 0:00:08]} 49. Kc3 {[%emt 0:00:01]} Ne4+ {[%emt 0:00:01]} 50. Kb3 {
[%emt 0:00:01] (Lag: Av=0.24s, max=0.9s)} 1/2-1/2